lending/lending_fUSD_20250808
["ID","MTS","AMOUNT","RATE_DAILY","PERIOD"]
[377930976,1754614253801,-899.62,0.00021095,2]
[377930978,1754614253811,-960.68,0.00021095,2]
[377930980,1754614253821,-777.43,0.00021095,2]
[377930982,1754614253831,-400.0,0.00021095,2]
[377930985,1754614253841,-400.0,0.00021095,2]
[377930987,1754614253852,-715.39,0.00021095,2]
[377930989,1754614253862,-1024.44,0.00021095,2]
[377930991,1754614253872,-3151.2,0.00021095,2]
[377930993,1754614253882,-715.1,0.00021095,2]
[377930995,1754614253893,-400.0,0.00021095,2]
[377930997,1754614253903,-452.77,0.00021095,2]
[377930999,1754614253913,-1570.29,0.00021095,2]
[377931001,1754614253924,-565.95,0.00021095,2]
[377931003,1754614253935,-755.68,0.00021095,2]
[377931005,1754614253945,-451.58,0.00021095,2]
[377931007,1754614253955,-786.14,0.00021095,2]
[377931009,1754614253965,-400.0,0.00021095,2]
[377931011,1754614253975,-666.42,0.00021095,2]
[377931013,1754614253985,-1433.09,0.00021095,2]
[377931015,1754614253996,-1047.76,0.00021095,2]
[377931017,1754614254008,-400.0,0.00021095,2]
[377931020,1754614254019,-484.36527218,0.00021095,2]
[377931022,1754614254029,-151.59,0.00021095,2]
[377931024,1754614254039,-150.41,0.00021095,2]
[377931026,1754614254049,-2500.0,0.00021364,2]
[377931028,1754614254059,-400.0,0.00021369,2]
[377931030,1754614254070,-1357.58,0.00021369,2]
[377931032,1754614254081,-1208.7,0.00021369,2]
[377931034,1754614254092,-571.32,0.00021369,2]
[377931036,1754614254102,-722.94,0.00021369,2]
[377931038,1754614254112,-400.0,0.00021369,2]
[377931040,1754614254122,-400.0,0.00021369,2]
[377931042,1754614254132,-469.65474702,0.00021369,2]
[377931044,1754614254142,-440.35,0.00021369,2]
[377931046,1754614254152,-400.0,0.00021369,2]
[377931048,1754614254162,-2803.03,0.00021369,2]
[377931050,1754614254175,-649.34,0.00021369,2]
[377931052,1754614254186,-1112.97,0.00021369,2]
[377931054,1754614254198,-1702.91,0.00021369,2]
[377931056,1754614254208,-400.0,0.00021369,2]
[377931058,1754614254218,-563.63,0.00021369,2]
[377931061,1754614254227,-535.07,0.00021369,2]
[377931063,1754614254238,-400.0,0.00021369,2]
[377931065,1754614254249,-412.44,0.00021369,2]
[377931067,1754614254259,-1496.19,0.00021369,2]
[377931069,1754614254270,-798.53,0.00021369,2]
[377931071,1754614254280,-636.33,0.00021369,2]
[377931073,1754614254290,-400.0,0.00021369,2]
[377931075,1754614254300,-400.0,0.00021369,2]
[377931077,1754614254310,-501.71,0.00021369,2]
[377931079,1754614254319,-1301.51,0.00021369,2]
[377931081,1754614254329,-400.0,0.00021369,2]
[377931083,1754614254339,-400.0,0.00021369,2]
[377931085,1754614254349,-400.0,0.00021369,2]
[377931087,1754614254359,-400.0,0.00021369,2]
[377931089,1754614254370,-1160.41,0.00021369,2]
[377931091,1754614254380,-502.75,0.00021369,2]
[377931093,1754614254391,-400.0,0.00021369,2]
[377931095,1754614254402,-400.0,0.00021369,2]
[377931097,1754614254412,-648.77,0.00021369,2]
[377931099,1754614254423,-400.0,0.00021369,2]
[377931144,1754614254973,-400.0,0.00021369,2]
[377931147,1754614254995,-1559.58,0.00021369,2]
[377931150,1754614255009,-1110.84,0.00021369,2]
[377931152,1754614255018,-1082.24,0.00021369,2]
[377931154,1754614255028,-672.61,0.00021369,2]
[377931156,1754614255038,-738.48,0.00021369,2]
[377931158,1754614255048,-400.0,0.00021369,2]
[377931160,1754614255058,-2850.84,0.00021369,2]
[377931161,1754614255068,-1783.35,0.00021369,2]
[377931164,1754614255078,-819.83,0.00021369,2]
[377931166,1754614255088,-1144.25,0.00021369,2]
[377931168,1754614255097,-400.0,0.00021369,2]
[377931170,1754614255107,-400.0,0.00021369,2]
[377931172,1754614255116,-1207.97,0.00021369,2]
[377931174,1754614255126,-774.82,0.00021369,2]
[377931176,1754614255135,-193.81814568,0.00021369,2]
[377931178,1754614255146,-369.38260534,0.00021369,2]
[377931179,1754614255157,-400.0,0.00021369,2]
[377931182,1754614255168,-400.0,0.00021369,2]
[377931184,1754614255180,-637.04,0.00021369,2]
[377931186,1754614255190,-400.0,0.00021369,2]
[377931188,1754614255200,-809.38,0.00021369,2]
[377931190,1754614255210,-1872.75,0.00021369,2]
[377931192,1754614255219,-739.13,0.00021369,2]
[377931194,1754614255229,-400.0,0.00021369,2]
[377931196,1754614255238,-518.6,0.00021369,2]
[377931198,1754614255249,-3096.84,0.00021369,2]
[377931200,1754614255260,-181.74,0.00021369,2]
[377931202,1754614255270,-400.0,0.00021369,2]
[377931204,1754614255280,-688.92,0.00021369,2]
[377931205,1754614255290,-400.0,0.00021369,2]
[377931206,1754614255300,-724.63,0.00021369,2]
[377931207,1754614255309,-400.0,0.00021369,2]
[377931208,1754614255319,-400.0,0.00021369,2]
[377931209,1754614255328,-400.0,0.00021369,2]
[377931210,1754614255338,-1838.62,0.00021369,2]
[377931211,1754614255348,-2478.01,0.00021369,2]
[377931212,1754614255357,-717.49,0.00021369,2]
[377931213,1754614255367,-791.17,0.00021369,2]
[377931214,1754614255377,-453.61,0.00021369,2]
[377931215,1754614255387,-743.0,0.00021369,2]
[377931216,1754614255396,-2279.55,0.00021369,2]
[377931218,1754614255406,-833.52,0.00021369,2]
[377931220,1754614255416,-1092.65,0.00021369,2]
[377931222,1754614255426,-400.0,0.00021369,2]
[377931224,1754614255435,-633.66,0.00021369,2]
[377931226,1754614255445,-1210.68,0.00021369,2]
[377931228,1754614255455,-900.29,0.00021369,2]
[377931230,1754614255464,-757.08,0.00021369,2]
[377931232,1754614255474,-400.0,0.00021369,2]
[377931234,1754614255483,-400.0,0.00021369,2]
[377931236,1754614255493,-602.93,0.00021369,2]
[377931238,1754614255502,-1933.78,0.00021369,2]
[377931240,1754614255512,-400.0,0.00021369,2]
[377931242,1754614255522,-526.94048802,0.00021369,2]
[377931244,1754614255532,-541.11,0.00021369,2]
[377931246,1754614255542,-411.24,0.00021369,2]
[377931248,1754614255551,-400.0,0.00021369,2]
[377931250,1754614255561,-2866.87,0.00021369,2]
[377931252,1754614255572,-400.0,0.00021369,2]
[377931254,1754614255581,-400.0,0.00021369,2]
[377931256,1754614255591,-1218.55,0.00021369,2]
[377931258,1754614255600,-400.0,0.00021369,2]
[377931260,1754614255610,-400.0,0.00021369,2]
[377931262,1754614255619,-1023.23,0.00021369,2]
[377931264,1754614255629,-400.0,0.00021369,2]
[377931266,1754614255639,-995.05,0.00021369,2]
[377931268,1754614255649,-400.0,0.00021369,2]
[377931270,1754614255659,-1397.65,0.00021369,2]
[377931272,1754614255668,-400.0,0.00021369,2]
[377931274,1754614255678,-400.0,0.00021369,2]
[377931276,1754614255688,-400.0,0.00021369,2]
[377931278,1754614255698,-400.0,0.00021369,2]
[377931280,1754614255708,-440.38,0.00021369,2]
[377931282,1754614255717,-569.3,0.00021369,2]
[377931284,1754614255727,-1429.25,0.00021369,2]
[377931286,1754614255737,-1014.96,0.00021369,2]
[377931288,1754614255746,-218.8,0.00021369,2]
[377931290,1754614255755,-627.88,0.00021369,2]
[377931292,1754614255765,-400.0,0.00021369,2]
[377931294,1754614255775,-1063.03,0.00021369,2]
[377931296,1754614255785,-536.63,0.00021369,2]
[377931298,1754614255795,-400.0,0.00021369,2]
[377931300,1754614255805,-400.0,0.00021369,2]
[377931302,1754614255815,-400.0,0.00021369,2]
[377931305,1754614255826,-1603.28,0.00021369,2]
[377931306,1754614255836,-400.0,0.00021369,2]
[377931308,1754614255846,-400.0,0.00021369,2]
[377931310,1754614255855,-400.0,0.00021369,2]
[377931313,1754614255865,-1163.02,0.00021369,2]
[377931315,1754614255875,-1915.69,0.00021369,2]
[377931316,1754614255885,-400.0,0.00021369,2]
[377931319,1754614255895,-481.01,0.00021369,2]
[377931321,1754614255905,-400.0,0.00021369,2]
[377931323,1754614255915,-973.9,0.00021369,2]
[377931325,1754614255925,-1809.74,0.00021369,2]
[377931327,1754614255934,-899.62,0.00021369,2]
[377931329,1754614255944,-960.68,0.00021369,2]
[377931331,1754614255954,-777.43,0.00021369,2]
[377931333,1754614255963,-400.0,0.00021369,2]
[377931335,1754614255974,-400.0,0.00021369,2]
[377931337,1754614255984,-715.39,0.00021369,2]
[377931339,1754614255994,-1024.44,0.00021369,2]
[377931341,1754614256006,-3151.2,0.00021369,2]
[377931343,1754614256020,-400.0,0.00021369,2]
[377931345,1754614256030,-452.77,0.00021369,2]
[377931347,1754614256040,-1570.29,0.00021369,2]
[377931349,1754614256050,-565.95,0.00021369,2]
[377931350,1754614256060,-755.68,0.00021369,2]
[377931352,1754614256069,-451.58,0.00021369,2]
[377931354,1754614256079,-786.14,0.00021369,2]
[377931356,1754614256089,-400.0,0.00021369,2]
[377931359,1754614256101,-666.42,0.00021369,2]
[377931361,1754614256111,-1433.09,0.00021369,2]
[377931363,1754614256121,-1047.76,0.00021369,2]
[377931365,1754614256130,-465.09911448,0.00021369,2]
[377931367,1754614256141,-834.94653171,0.00021416,2]
[377931369,1754614256154,-496.18548413,0.00021544,2]
[377931370,1754614256167,-173.68,0.00021566,2]
[377931372,1754614256177,-203.0,0.0002162,2]
[377931374,1754614256187,-400.0,0.00021643,2]
[377931377,1754614256199,-1357.58,0.00021643,2]
[377931379,1754614256208,-1208.7,0.00021643,2]
[377931381,1754614256218,-571.32,0.00021643,2]
[377931382,1754614256229,-722.94,0.00021643,2]
[377931384,1754614256238,-400.0,0.00021643,2]
[377931386,1754614256248,-400.0,0.00021643,2]
[377931389,1754614256260,-440.35,0.00021643,2]
[377931390,1754614256269,-400.0,0.00021643,2]
[377931393,1754614256280,-2803.03,0.00021643,2]
[377931395,1754614256290,-649.34,0.00021643,2]
[377931397,1754614256300,-1112.97,0.00021643,2]
[377931399,1754614256310,-1702.91,0.00021643,2]
[377931401,1754614256321,-400.0,0.00021643,2]
[377931403,1754614256330,-563.63,0.00021643,2]
[377931405,1754614256340,-535.07,0.00021643,2]
[377931407,1754614256349,-400.0,0.00021643,2]
[377931409,1754614256360,-412.44,0.00021643,2]
[377931411,1754614256370,-1496.19,0.00021643,2]
[377931413,1754614256380,-798.53,0.00021643,2]
[377931415,1754614256389,-636.33,0.00021643,2]
[377931417,1754614256399,-400.0,0.00021643,2]
[377931419,1754614256409,-400.0,0.00021643,2]
[377931421,1754614256419,-501.71,0.00021643,2]
[377931423,1754614256429,-1301.51,0.00021643,2]
[377931425,1754614256438,-400.0,0.00021643,2]
[377931427,1754614256448,-400.0,0.00021643,2]
[377931429,1754614256458,-400.0,0.00021643,2]
[377931431,1754614256468,-400.0,0.00021643,2]
[377931433,1754614256478,-1160.41,0.00021643,2]
[377931435,1754614256487,-502.75,0.00021643,2]
[377931437,1754614256497,-400.0,0.00021643,2]
[377931439,1754614256509,-441.70201196,0.00021643,2]
[377931441,1754614256519,-648.77,0.00021643,2]
[377931443,1754614256530,-496.6593294,0.00021643,2]
[377931444,1754614256540,-400.0,0.00021643,2]
[377931445,1754614256550,-1559.58,0.00021643,2]
[377931446,1754614256561,-1110.84,0.00021643,2]
[377931447,1754614256570,-1082.24,0.00021643,2]
[377931448,1754614256581,-672.61,0.00021643,2]
[377931449,1754614256591,-738.48,0.00021643,2]
[377931450,1754614256601,-400.0,0.00021643,2]
[377931451,1754614256610,-2850.84,0.00021643,2]
[377931452,1754614256620,-1783.35,0.00021643,2]
[377931453,1754614256630,-819.83,0.00021643,2]
[377931454,1754614256640,-1144.25,0.00021643,2]
[377931455,1754614256649,-400.0,0.00021643,2]
[377931456,1754614256659,-400.0,0.00021643,2]
[377931457,1754614256669,-1207.97,0.00021643,2]
[377931458,1754614256679,-774.82,0.00021643,2]
[377931459,1754614256688,-400.0,0.00021643,2]
[377931460,1754614256698,-400.0,0.00021643,2]
[377931461,1754614256707,-637.04,0.00021643,2]
[377931462,1754614256717,-400.0,0.00021643,2]
[377931463,1754614256726,-809.38,0.00021643,2]
[377931464,1754614256736,-1872.75,0.00021643,2]
[377931465,1754614256745,-739.13,0.00021643,2]
[377931466,1754614256755,-400.0,0.00021643,2]
[377931467,1754614256770,-518.6,0.00021643,2]
[377931468,1754614256779,-3096.84,0.00021643,2]
[377931470,1754614256790,-487.17,0.00021643,2]
[377931471,1754614256800,-688.92,0.00021643,2]
[377931472,1754614256809,-324.54345461,0.00021643,2]
[377931473,1754614256819,-724.63,0.00021643,2]
[377931474,1754614256828,-400.0,0.00021643,2]
[377931475,1754614256838,-400.0,0.00021643,2]
[377931476,1754614256847,-400.0,0.00021643,2]
[377931477,1754614256857,-1838.62,0.00021643,2]
[377931478,1754614256866,-2478.01,0.00021643,2]
[377931479,1754614256875,-717.49,0.00021643,2]
[377931480,1754614256886,-791.17,0.00021643,2]
[377931481,1754614256895,-453.61,0.00021643,2]
[377931482,1754614256905,-743.0,0.00021643,2]
[377931483,1754614256915,-2279.55,0.00021643,2]
[377931484,1754614256925,-833.52,0.00021643,2]
[377931485,1754614256935,-1092.65,0.00021643,2]
[377931486,1754614256945,-400.0,0.00021643,2]
[377931487,1754614256955,-633.66,0.00021643,2]
[377931489,1754614256965,-1210.68,0.00021643,2]
[377931491,1754614256976,-900.29,0.00021643,2]
[377931493,1754614256986,-757.08,0.00021643,2]
[377931495,1754614256996,-400.0,0.00021643,2]
[377931497,1754614257007,-400.0,0.00021643,2]
[377931499,1754614257022,-602.93,0.00021643,2]
[377931501,1754614257032,-1933.78,0.00021643,2]
[377931503,1754614257042,-400.0,0.00021643,2]
[377931505,1754614257053,-541.11,0.00021643,2]
[377931506,1754614257064,-411.24,0.00021643,2]
[377931507,1754614257074,-400.0,0.00021643,2]
[377931508,1754614257083,-400.0,0.00021643,2]
[377931509,1754614257094,-2866.87,0.00021643,2]
[377931510,1754614257104,-400.0,0.00021643,2]
[377931511,1754614257114,-1218.55,0.00021643,2]
[377931512,1754614257123,-400.0,0.00021643,2]
[377931513,1754614257134,-400.0,0.00021643,2]
[377931514,1754614257143,-1023.23,0.00021643,2]
[377931515,1754614257155,-400.0,0.00021643,2]
[377931516,1754614257166,-995.05,0.00021643,2]
[377931517,1754614257180,-400.0,0.00021643,2]
[377931518,1754614257190,-1397.65,0.00021643,2]
[377931519,1754614257202,-400.0,0.00021643,2]
[377931520,1754614257211,-400.0,0.00021643,2]
[377931521,1754614257221,-400.0,0.00021643,2]
[377931522,1754614257231,-400.0,0.00021643,2]
[377931523,1754614257242,-440.38,0.00021643,2]
[377931525,1754614257253,-569.3,0.00021643,2]
[377931526,1754614257267,-1429.25,0.00021643,2]
[377931527,1754614257277,-1014.96,0.00021643,2]
[377931528,1754614257287,-627.88,0.00021643,2]
[377931529,1754614257297,-400.0,0.00021643,2]
[377931530,1754614257307,-1063.03,0.00021643,2]
[377931531,1754614257318,-536.63,0.00021643,2]
[377931532,1754614257372,-400.0,0.00021643,2]
[377931534,1754614257383,-400.0,0.00021643,2]
[377931536,1754614257393,-400.0,0.00021643,2]
[377931538,1754614257403,-1603.28,0.00021643,2]
[377931540,1754614257412,-400.0,0.00021643,2]
[377931542,1754614257422,-400.0,0.00021643,2]
[377931543,1754614257432,-400.0,0.00021643,2]
[377931545,1754614257443,-1163.02,0.00021643,2]
[377931546,1754614257453,-1915.69,0.00021643,2]
[377931547,1754614257463,-400.0,0.00021643,2]
[377931548,1754614257473,-481.01,0.00021643,2]
[377931549,1754614257483,-400.0,0.00021643,2]
[377931550,1754614257493,-973.9,0.00021643,2]
[377931551,1754614257504,-1809.74,0.00021643,2]
[377931552,1754614257515,-899.62,0.00021643,2]
[377931553,1754614257525,-960.68,0.00021643,2]
[377931554,1754614257535,-777.43,0.00021643,2]
[377931555,1754614257545,-400.0,0.00021643,2]
[377931556,1754614257555,-400.0,0.00021643,2]
[377931557,1754614257566,-715.39,0.00021643,2]
[377931558,1754614257576,-1024.44,0.00021643,2]
[377931559,1754614257586,-3151.2,0.00021643,2]
[377931560,1754614257596,-335.87289873,0.00021643,2]
[377931561,1754614257606,-452.77,0.00021643,2]
[377931562,1754614257616,-1570.29,0.00021643,2]
[377931563,1754614257626,-565.95,0.00021643,2]
[377931564,1754614257637,-755.68,0.00021643,2]
[377931565,1754614257646,-451.58,0.00021643,2]
[377931566,1754614257655,-786.14,0.00021643,2]
[377931567,1754614257664,-400.0,0.00021643,2]
[377931568,1754614257674,-666.42,0.00021643,2]
[377931569,1754614257684,-1433.09,0.00021643,2]
[377931570,1754614257693,-1047.76,0.00021643,2]
[377931571,1754614257703,-587.0,0.00021683,2]
[377931572,1754614257713,-2351.0,0.00021896,2]
[377931573,1754614257723,-1500.0,0.000219,7]
[377931574,1754614257732,-203.0,0.0002191,2]
[377931575,1754614257741,-203.0,0.0002191,2]
[377931576,1754614257751,-3000.0,0.00021912,2]
[377931577,1754614257763,-152.76,0.00021917,2]
[377931578,1754614257772,-152.69,0.00021917,2]
[377931579,1754614257782,-152.39,0.00021917,2]
[377931580,1754614257793,-400.0,0.00021917,2]
[377931581,1754614257803,-1357.58,0.00021917,2]
[377931582,1754614257812,-1208.7,0.00021917,2]
[377931583,1754614257822,-571.32,0.00021917,2]
[377931584,1754614257832,-722.94,0.00021917,2]
[377931585,1754614257841,-400.0,0.00021917,2]
[377931586,1754614257851,-400.0,0.00021917,2]
[377931587,1754614257860,-440.35,0.00021917,2]
[377931588,1754614257869,-400.0,0.00021917,2]
[377931589,1754614257879,-2803.03,0.00021917,2]
[377931590,1754614257889,-649.34,0.00021917,2]
[377931591,1754614257898,-1112.97,0.00021917,2]
[377931592,1754614257908,-1702.91,0.00021917,2]
[377931593,1754614257918,-400.0,0.00021917,2]
[377931594,1754614257928,-563.63,0.00021917,2]
[377931595,1754614257937,-535.07,0.00021917,2]
[377931596,1754614257946,-400.0,0.00021917,2]
[377931597,1754614257956,-412.44,0.00021917,2]
[377931598,1754614257966,-1496.19,0.00021917,2]
[377931599,1754614257976,-798.53,0.00021917,2]
[377931600,1754614257986,-636.33,0.00021917,2]
[377931601,1754614257995,-400.0,0.00021917,2]
[377931602,1754614258006,-400.0,0.00021917,2]
[377931603,1754614258020,-1301.51,0.00021917,2]
[377931604,1754614258029,-501.71,0.00021917,2]
[377931605,1754614258039,-400.0,0.00021917,2]
[377931606,1754614258048,-400.0,0.00021917,2]
[377931607,1754614258057,-400.0,0.00021917,2]
[377931608,1754614258066,-400.0,0.00021917,2]
[377931609,1754614258076,-1160.41,0.00021917,2]
[377931610,1754614258086,-502.75,0.00021917,2]
[377931611,1754614258095,-400.0,0.00021917,2]
[377931612,1754614258104,-648.77,0.00021917,2]
[377931613,1754614258114,-400.0,0.00021917,2]
[377931614,1754614258124,-1559.58,0.00021917,2]
[377931615,1754614258134,-1110.84,0.00021917,2]
[377931616,1754614258144,-1082.24,0.00021917,2]
[377931617,1754614258156,-672.61,0.00021917,2]
[377931618,1754614258166,-738.48,0.00021917,2]
[377931619,1754614258178,-400.0,0.00021917,2]
[377931620,1754614258188,-2850.84,0.00021917,2]
[377931621,1754614258199,-1783.35,0.00021917,2]
[377931622,1754614258209,-819.83,0.00021917,2]
[377931623,1754614258219,-1144.25,0.00021917,2]
[377931624,1754614258229,-400.0,0.00021917,2]
[377931625,1754614258240,-400.0,0.00021917,2]
[377931626,1754614258250,-1207.97,0.00021917,2]
[377931627,1754614258261,-774.82,0.00021917,2]
[377931628,1754614258272,-400.0,0.00021917,2]
[377931629,1754614258281,-400.0,0.00021917,2]
[377931630,1754614258291,-637.04,0.00021917,2]
[377931631,1754614258300,-400.0,0.00021917,2]
[377931632,1754614258310,-809.38,0.00021917,2]
[377931633,1754614258319,-1872.75,0.00021917,2]
[377931634,1754614258329,-739.13,0.00021917,2]
[377931635,1754614258338,-464.79481536,0.00021917,2]
[377931636,1754614258347,-518.6,0.00021917,2]
[377931637,1754614258357,-3096.84,0.00021917,2]
[377931638,1754614258366,-500.0,0.00021917,2]
[377931639,1754614258375,-193.18104268,0.00021917,2]
[377931640,1754614258385,-688.92,0.00021917,2]
[377931641,1754614258394,-724.63,0.00021917,2]
[377931642,1754614258403,-400.0,0.00021917,2]
[377931643,1754614258412,-400.0,0.00021917,2]
[377931644,1754614258422,-400.0,0.00021917,2]
[377931645,1754614258432,-1838.62,0.00021917,2]
[377931646,1754614258441,-2478.01,0.00021917,2]
[377931647,1754614258451,-717.49,0.00021917,2]
[377931648,1754614258461,-791.17,0.00021917,2]
[377931649,1754614258470,-453.61,0.00021917,2]
[377931650,1754614258480,-743.0,0.00021917,2]
[377931651,1754614258490,-2279.55,0.00021917,2]
[377931652,1754614258499,-833.52,0.00021917,2]
[377931653,1754614258509,-1092.65,0.00021917,2]
[377931654,1754614258521,-400.0,0.00021917,2]
[377931655,1754614258530,-633.66,0.00021917,2]
[377931656,1754614258540,-1210.68,0.00021917,2]
[377931657,1754614258550,-900.29,0.00021917,2]
[377931658,1754614258559,-757.08,0.00021917,2]
[377931659,1754614258569,-400.0,0.00021917,2]
[377931660,1754614258578,-400.0,0.00021917,2]
[377931661,1754614258587,-602.93,0.00021917,2]
[377931662,1754614258597,-400.0,0.00021917,2]
[377931663,1754614258606,-1933.78,0.00021917,2]
[377931664,1754614258617,-541.11,0.00021917,2]
[377931665,1754614258627,-411.24,0.00021917,2]
[377931666,1754614258637,-400.0,0.00021917,2]
[377931667,1754614258647,-400.0,0.00021917,2]
[377931668,1754614258657,-400.0,0.00021917,2]
[377931669,1754614258667,-2866.87,0.00021917,2]
[377931670,1754614258676,-1218.55,0.00021917,2]
[377931671,1754614258686,-400.0,0.00021917,2]
[377931672,1754614258697,-400.0,0.00021917,2]
[377931673,1754614258708,-1023.23,0.00021917,2]
[377931674,1754614258717,-400.0,0.00021917,2]
[377931675,1754614258727,-995.05,0.00021917,2]
[377931676,1754614258737,-219.9332694,0.00021917,2]
[377931677,1754614258747,-1397.65,0.00021917,2]
[377931678,1754614258757,-400.0,0.00021917,2]
[377931679,1754614258770,-400.0,0.00021917,2]
[377931680,1754614258779,-400.0,0.00021917,2]
[377931681,1754614258789,-220.85430813,0.00021917,2]
[377931682,1754614258799,-440.38,0.00021917,2]
[377931683,1754614258809,-569.3,0.00021917,2]
[377931684,1754614258819,-1429.25,0.00021917,2]
[377931685,1754614258829,-1014.96,0.00021917,2]
[377931686,1754614258838,-627.88,0.00021917,2]
[377931687,1754614258848,-206.51718812,0.00021917,2]
[377931688,1754614258858,-1063.03,0.00021917,2]
[377931689,1754614258867,-536.63,0.00021917,2]
[377931690,1754614258877,-400.0,0.00021917,2]
[377931691,1754614258886,-400.0,0.00021917,2]
[377931692,1754614258896,-400.0,0.00021917,2]
[377931693,1754614258906,-1603.28,0.00021917,2]
[377931694,1754614258916,-400.0,0.00021917,2]
[377931695,1754614258925,-400.0,0.00021917,2]
[377931696,1754614258935,-400.0,0.00021917,2]
[377931697,1754614258945,-1163.02,0.00021917,2]
[377931698,1754614258955,-400.0,0.00021917,2]
[377931699,1754614258965,-1915.69,0.00021917,2]
[377931700,1754614258975,-481.01,0.00021917,2]
[377931701,1754614258984,-400.0,0.00021917,2]
[377931702,1754614258995,-973.9,0.00021917,2]
[377931703,1754614259006,-1809.74,0.00021917,2]
[377931704,1754614259017,-899.62,0.00021917,2]
[377931705,1754614259027,-960.68,0.00021917,2]
[377931706,1754614259037,-777.43,0.00021917,2]
[377931707,1754614259047,-400.0,0.00021917,2]
[377931708,1754614259057,-400.0,0.00021917,2]
[377931709,1754614259067,-715.39,0.00021917,2]
[377931710,1754614259077,-1024.44,0.00021917,2]
[377931711,1754614259087,-3151.2,0.00021917,2]
[377931712,1754614259097,-452.77,0.00021917,2]
[377931713,1754614259107,-1570.29,0.00021917,2]
[377931714,1754614259117,-565.95,0.00021917,2]
[377931715,1754614259127,-755.68,0.00021917,2]
[377931716,1754614259136,-451.58,0.00021917,2]
[377931717,1754614259147,-786.14,0.00021917,2]
[377931718,1754614259157,-400.0,0.00021917,2]
[377931719,1754614259166,-666.42,0.00021917,2]
[377931720,1754614259178,-1433.09,0.00021917,2]
[377931721,1754614259187,-1047.76,0.00021917,2]
[377931722,1754614259197,-5000.0,0.00021918,2]
[377931723,1754614259207,-150.0,0.00021918,2]
[377931724,1754614259217,-158.4,0.00021928,2]
[377931725,1754614259227,-400.0,0.00022191,2]
[377931726,1754614259236,-1357.58,0.00022191,2]
[377931727,1754614259246,-1208.7,0.00022191,2]
[377931728,1754614259255,-571.32,0.00022191,2]
[377931729,1754614259267,-722.94,0.00022191,2]
[377931730,1754614259277,-400.0,0.00022191,2]
[377931731,1754614259287,-400.0,0.00022191,2]
[377931732,1754614259296,-440.35,0.00022191,2]
[377931733,1754614259306,-400.0,0.00022191,2]
[377931734,1754614259316,-2803.03,0.00022191,2]
[377931735,1754614259326,-649.34,0.00022191,2]
[377931736,1754614259335,-1112.97,0.00022191,2]
[377931737,1754614259344,-1702.91,0.00022191,2]
[377931738,1754614259354,-400.0,0.00022191,2]
[377931739,1754614259363,-563.63,0.00022191,2]
[377931740,1754614259373,-535.07,0.00022191,2]
[377931741,1754614259382,-400.0,0.00022191,2]
[377931742,1754614259392,-412.44,0.00022191,2]
[377931743,1754614259402,-1496.19,0.00022191,2]
[377931744,1754614259411,-798.53,0.00022191,2]